Workbook

Sheet Hárok1
A1: Návrh na úprava výdavkov RO - ZŠ s MŠ Palárikovo, rozpočtové opatrenie č. 9
A4: Rozpočtová klasifikácia
A5: Pr PP | B5: Zdr | C5: Pol | D5: Popis | E5: Plnenie 2019 | F5: Plnenie 2020 | G5: 2021 Schválený rozpočet | H5: Upravený RR po úprave č.6 | I5: Návrh na úpravu č. 9 | J5: Upravený RR po úprave č. 9 | K5: Plnenie k 30.04.2021 | L5: % uprav. schvál.
A6: 08 Program Vzdelávanie
A7: 08 01 Podprogram Materská škola
A8: 08 01 | B8: 41 | C8: 610 | D8: Mzdy, platy, OON | E8: 168989.3 | F8: 163788.22 | G8: 192000 | H8: 192000 | I8: 0 | J8: =SUM(H8:I8) -> 192000 | K8: =39912.26+39.33+1703.02+1205.9 -> 42860.51 | L8: =vypocetPercent(J8,K8) -> 22.32318229
A9: 08 01 | B9: 41 | C9: 610 | D9: Mzdy, platy, AU projekt | E9: 0 | F9: 0 | G9: 0 | H9: 0 | I9: 0 | J9: =SUM(H9:I9) -> 0 | K9: 0 | L9: 0
A10: 08 01 | B10: 41 | C10: 620 | D10: Poist.a prísp.AU projekt | E10: 0 | F10: 0 | G10: 0 | H10: 0 | I10: 0 | J10: 0 | K10: 0 | L10: 0
A11: 08 01 | B11: 72 | C11: 610 | D11: Mzdy, platy, OON | E11: 0 | F11: 41220.05 | G11: 0 | H11: 0 | I11: 0 | J11: =SUM(H11:I11) -> 0 | K11: 0 | L11: 0
A12: 08 01 | B12: 1AC1 | C12: 610 | D12: Mzdy, platy, AU projekt | E12: 0 | F12: 0 | G12: 0 | H12: 225.51 | I12: 0 | J12: 225.51 | K12: 451.01 | L12: 199.9955656
A13: 08 01 | B13: 1AC2 | C13: 610 | D13: Mzdy, platy, AU projekt | E13: 0 | F13: 0 | G13: 0 | H13: 188.47 | I13: 0 | J13: 188.47 | K13: 376.94 | L13: 200
A14: 08 01 | B14: 1AC3 | C14: 610 | D14: Mzdy, platy, AU projekt | E14: 0 | F14: 0 | G14: 0 | H14: 99.04 | I14: 0 | J14: 99.04 | K14: 198.08 | L14: 200
A15: 08 01 | B15: 3AC1 | C15: 610 | D15: Mzdy, platy, AU projekt | E15: 0 | F15: 750.53 | G15: 0 | H15: 2131.46 | I15: 0 | J15: 2131.46 | K15: 2095.4 | L15: 98.30820189
A16: 08 01 | B16: 3AC2 | C16: 610 | D16: Mzdy, platy, AU projekt | E16: 0 | F16: 132.45 | G16: 0 | H16: 36.21 | I16: 0 | J16: 36.21 | K16: 72.42 | L16: 200
A17: 08 01 | B17: 3AC3 | C17: 610 | D17: Mzdy, platy, AU projekt | E17: 0 | F17: 90.86 | G17: 0 | H17: 55.09 | I17: 0 | J17: 55.09 | K17: 110.19 | L17: 200.0181521
A18: 08 01 | B18: 41 | C18: 620 | D18: Poistné a príspevky | E18: 60992.8 | F18: 69661.68 | G18: 70536 | H18: 70536 | I18: 0 | J18: 70536 | K18: =2057.86+2322.71+10730.01+495 -> 15605.58 | L18: 22.12427696
A19: 08 01 | B19: 1AC1 | C19: 620 | D19: Poist. a prísp.AU projekt | E19: 0 | F19: 0 | G19: 0 | H19: 78.81 | I19: 0 | J19: 78.81 | K19: =45.1+112.52 -> 157.62 | L19: 200
A20: 08 01 | B20: 1AC2 | C20: 620 | D20: Poist. a prísp.AU projekt | E20: 0 | F20: 0 | G20: 0 | H20: 65.87 | I20: 0 | J20: 65.87 | K20: =37.7+94.03 -> 131.73 | L20: 199.9848186
A21: 08 01 | B21: 1AC3 | C21: 620 | D21: Poist. a prísp.AU projekt | E21: 0 | F21: 0 | G21: 0 | H21: 34.61 | I21: 0 | J21: 34.61 | K21: =19.8+49.42 -> 69.22 | L21: 200
A22: 08 01 | B22: 3AC1 | C22: 620 | D22: Poist. a prísp.AU projekt | E22: 0 | F22: 262.24 | G22: 0 | H22: 366.14 | I22: 0 | J22: =SUM(H22:I22) -> 366.14 | K22: =209.54+522.75 -> 732.29 | L22: 200.0027312
A23: 08 01 | B23: 3AC2 | C23: 620 | D23: Poist. a prísp.AU projekt | E23: 0 | F23: 46.27 | G23: 0 | H23: 12.66 | I23: 0 | J23: 12.66 | K23: =7.24+18.08 -> 25.32 | L23: 200
A24: 08 01 | B24: 3AC3 | C24: 620 | D24: Poist. a prísp.AU projekt | E24: 0 | F24: 31.75 | G24: 0 | H24: 19.25 | I24: 0 | J24: 19.25 | K24: =11.02+27.48 -> 38.5 | L24: 200
A25: 08 01 | B25: 41 | C25: 632 | D25: Energie | E25: 14340.18 | F25: 10738.11 | G25: 6000 | H25: 6518 | I25: 0 | J25: 6518 | K25: 4027.57 | L25: 61.79150046
A26: 08 01 | B26: 72 | C26: 632 | D26: Energie | E26: 0 | F26: 4866.44 | G26: 9000 | H26: 9000 | I26: 701.61 | J26: 9701.61 | K26: 1271.37 | L26: 13.1047321
A27: 08 01 | B27: 41 | C27: 633 | D27: Materiál | E27: 18665.14 | F27: 6018.84 | G27: 4000 | H27: 4000 | I27: 0 | J27: 4000 | K27: 298.17 | L27: 7.45425
A28: 08 01 | B28: 72 | C28: 633 | D28: Materiál z príjmov | E28: 9822 | F28: 817.56 | G28: 0 | H28: 0 | I28: 0 | J28: 0 | K28: 0 | L28: 0
A29: 08 01 | B29: 111 | C29: 633 | D29: Materiál COVID | E29: 0 | F29: 344.58 | G29: 0 | H29: 0 | I29: 0 | J29: 0 | K29: 0 | L29: 0
A30: 08 01 | B30: 111 | C30: 633 | D30: Materiál(predškoláci) | E30: 5916 | F30: 7538 | G30: 0 | H30: 2472 | I30: 0 | J30: 2472 | K30: 420.2 | L30: 16.99838188
A31: 08 01 | B31: 111 | C31: 634 | D31: Dopravné náklady | E31: 0 | F31: 0 | G31: 0 | H31: 0 | I31: 0 | J31: 0 | K31: 0 | L31: 0
A32: 08 01 | B32: 41 | C32: 635 | D32: Údržba | E32: 10684.65 | F32: 1999.96 | G32: 1500 | H32: 1500 | I32: 0 | J32: 1500 | K32: 640.36 | L32: 42.69066667
A33: 08 01 | B33: 41 | C33: 637 | D33: Služby | E33: 12067.77 | F33: 9706.1 | G33: 7946.5 | H33: 7946.5 | I33: 0 | J33: 7946.5 | K33: 2077.15 | L33: 26.13918077
A34: 08 01 | B34: 111 | C34: 637 | D34: Služby (predškoláci) | E34: 212 | F34: 0 | G34: 0 | H34: 0 | I34: 0 | J34: 0 | K34: 0 | L34: 0
A35: 08 01 | B35: 41 | C35: 642 | D35: za PN, odchodné | E35: 456.75 | F35: 3245.17 | G35: 1000 | H35: 1000 | I35: 0 | J35: 1000 | K35: 173.47 | L35: 17.347
A36: 08 01 | B36: Bežný rozpočet | E36: =SUM(E8:E35) -> 302146.59 | F36: =SUM(F8:F35) -> 321258.81 | G36: =SUM(G8:G35) -> 291982.5 | H36: 298285.62 | I36: =SUM(I8:I35) -> 701.61 | J36: 298987.23 | K36: =SUM(K8:K35) -> 71833.1 | L36: 24.02547427
A37: 08 01 | B37: 41 | C37: 713 | D37: detská preliezka - Loď | E37: 2906 | F37: 0 | G37: 0 | H37: 0 | I37: 0 | J37: 0 | K37: 0 | L37: 0
A38: 08 01 | B38: Kapitálový rozpočet | E38: =SUM(E37) -> 2906 | F38: =SUM(F37) -> 0 | G38: =SUM(G37) -> 0 | H38: 0 | I38: =SUM(I37) -> 0 | J38: 0 | K38: =SUM(K37) -> 0 | L38: 0
A39: 08 01 | B39: Spolu rozpočet | E39: =SUM(E38,E36) -> 305052.59 | F39: =SUM(F38,F36) -> 321258.81 | G39: =SUM(G38,G36) -> 291982.5 | H39: 298285.62 | I39: =SUM(I38,I36) -> 701.61 | J39: =SUM(H39:I39) -> 298987.23 | K39: =SUM(K38,K36) -> 71833.1 | L39: 24.02547427
A40: 08 02 Podprogram Základná škola
A41: 08 02 | B41: 111 | C41: 610 | D41: Mzdy, platy, OON | E41: 399937.57 | F41: 451347.15 | G41: 422933 | H41: 427617 | I41: 0 | J41: =SUM(H41:I41) -> 427617 | K41: =99744.4+8110.46+2240 -> 110094.86 | L41: =vypocetPercent(J41,K41) -> 25.74613731
A42: 08 02 | B42: 41 | C42: 610 | D42: Mzdy, platy, AU projekt | E42: 0 | F42: 6019.4 | G42: 0 | H42: 0 | I42: 0 | J42: =SUM(H42:I42) -> 0 | K42: 0 | L42: 0
A43: 08 02 | B43: 1AC1 | C43: 610 | D43: Mzdy, platy, AU projekt | E43: 0 | F43: 0 | G43: 0 | H43: 445.62 | I43: 0 | J43: 445.62 | K43: 889.14 | L43: 199.5287465
A44: 08 02 | B44: 1AC2 | C44: 610 | D44: Mzdy, platy, AU projekt | E44: 0 | F44: 0 | G44: 0 | H44: 372.43 | I44: 0 | J44: 372.43 | K44: 743.11 | L44: 199.530113
A45: 08 02 | B45: 1AC3 | C45: 610 | D45: Mzdy, platy, AU projekt | E45: 0 | F45: 0 | G45: 0 | H45: 195.71 | I45: 0 | J45: 195.71 | K45: 390.5 | L45: 199.5299167
A46: 08 02 | B46: 3AC1 | C46: 610 | D46: Mzdy, platy, AU projekt | E46: 0 | F46: 3990.2 | G46: 0 | H46: 2070.35 | I46: 0 | J46: 2070.35 | K46: 4130.98 | L46: 199.5305142
A47: 08 02 | B47: 3AC2 | C47: 610 | D47: Mzdy, platy, AU projekt | E47: 0 | F47: 704.15 | G47: 0 | H47: 71.56 | I47: 0 | J47: 71.56 | K47: 142.79 | L47: 199.5388485
A48: 08 02 | B48: 3AC3 | C48: 610 | D48: Mzdy, platy, AU projekt | E48: 0 | F48: 483.06 | G48: 0 | H48: 108.88 | I48: 0 | J48: 108.88 | K48: 217.24 | L48: 199.52241
A49: 08 02 | B49: 111 | C49: 620 | D49: Poistné a príspevky | E49: 145873.25 | F49: 154254.58 | G49: 153815 | H49: 150616 | I49: 0 | J49: =SUM(H49:I49) -> 150616 | K49: =7708.01+3470.32+28286.62+975 -> 40439.95 | L49: 26.84970388
A50: 08 02 | B50: 131K | C50: 620 | D50: Poistné a príspevky | E50: 0 | F50: 0 | G50: 0 | H50: 0 | I50: 124.65 | J50: =SUM(H50:I50) -> 124.65 | K50: 0 | L50: 0
A51: 08 02 | B51: 41 | C51: 620 | D51: Poist.a prísp.AU projekt | E51: 0 | F51: 2087.7 | G51: 0 | H51: 0 | I51: 0 | J51: 0 | K51: 0 | L51: 0
A52: 08 02 | B52: 1AC1 | C52: 620 | D52: Poist. a prísp.AU projekt | E52: 0 | F52: 0 | G52: 0 | H52: 150.1 | I52: 0 | J52: 150.1 | K52: =33+44.66+221.82 -> 299.48 | L52: 199.5203198
A53: 08 02 | B53: 1AC2 | C53: 620 | D53: Poist. a prísp.AU projekt | E53: 0 | F53: 0 | G53: 0 | H53: 125.46 | I53: 0 | J53: 125.46 | K53: =27.58+37.33+185.4 -> 250.31 | L53: 199.5137893
A54: 08 02 | B54: 1AC3 | C54: 620 | D54: Poist. a prísp.AU projekt | E54: 0 | F54: 0 | G54: 0 | H54: 65.93 | I54: 0 | J54: 65.93 | K54: =14.49+19.62+97.43 -> 131.54 | L54: 199.5146367
A55: 08 02 | B55: 3AC1 | C55: 620 | D55: Poist. a prísp.AU projekt | E55: 0 | F55: 1343.91 | G55: 0 | H55: 697.41 | I55: 0 | J55: 697.41 | K55: =153.33+207.5+1030.59 -> 1391.42 | L55: 199.5124819
A56: 08 02 | B56: 3AC2 | C56: 620 | D56: Poist. a prísp.AU projekt | E56: 0 | F56: 237.15 | G56: 0 | H56: 24.11 | I56: 0 | J56: 24.11 | K56: =5.3+7.18+35.61 -> 48.09 | L56: 199.4608046
A57: 08 02 | B57: 3AC3 | C57: 620 | D57: Poist. a prísp.AU projekt | E57: 0 | F57: 162.68 | G57: 0 | H57: 36.67 | I57: 0 | J57: 36.67 | K57: =8.06+10.91+54.19 -> 73.16 | L57: 199.5091355
A58: 08 02 | B58: 111 | C58: 632 | D58: Energie | E58: 20824.56 | F58: 22387.27 | G58: 16000 | H58: 18000 | I58: 0 | J58: =SUM(H58:I58) -> 18000 | K58: 6732.53 | L58: 37.40294444
A59: 08 02 | B59: 111 | C59: 633 | D59: Materiál | E59: 16289.16 | F59: 33341.35 | G59: 15000 | H59: 18245 | I59: 0 | J59: 18245 | K59: =4759.68-1999.2-1338.38 -> 1422.1 | L59: 7.794464237
A60: 08 02 | B60: 111 | C60: 633 | D60: Materiál - digitalizácia | E60: 0 | F60: 0 | G60: 0 | H60: 2000 | I60: 0 | J60: 2000 | K60: 1999.2 | L60: 99.96
A61: 08 02 | B61: 111 | C61: 633 | D61: Mat.COVID(vzdel.pouk.) | E61: 0 | F61: 0 | G61: 0 | H61: 2957 | I61: 0 | J61: 2957 | K61: =440+174+724.38 -> 1338.38 | L61: 45.26141359
A62: 08 02 | B62: 72 | C62: 633 | D62: Materiál - z vratiek | E62: 0 | F62: 0 | G62: 0 | H62: 0 | I62: 948.12 | J62: =SUM(H62:I62) -> 948.12 | K62: 0 | L62: =vypocetPercent(J62,K62) -> 0
A63: 08 02 | B63: 41 | C63: 633 | D63: Mat. - učebné pomôcky | E63: 0 | F63: 5435.4 | G63: 0 | H63: 0 | I63: 0 | J63: 0 | K63: 0 | L63: 0
A64: 08 02 | B64: 72 | C64: 633 | D64: Uč.pom.z projektu NSK | E64: 2489.98 | F64: 0 | G64: 0 | H64: 0 | I64: 0 | J64: 0 | K64: 0 | L64: 0
A65: 08 02 | B65: 111 | C65: 634 | D65: Dopravné náklady | E65: 597.6 | F65: 0 | G65: 0 | H65: 0 | I65: 0 | J65: 0 | K65: 0 | L65: 0
A66: 08 02 | B66: 111 | C66: 635 | D66: Údržba | E66: 3773.34 | F66: 5557.03 | G66: 13000 | H66: 13000 | I66: 0 | J66: 13000 | K66: 2687.05 | L66: 20.66961538
A67: 08 02 | B67: 41 | C67: 635 | D67: Údržba | E67: 0 | F67: 0 | G67: 0 | H67: 0 | I67: 2141 | J67: =SUM(H67:I67) -> 2141 | K67: 0 | L67: =vypocetPercent(J67,K67) -> 0
A68: 08 02 | B68: 111 | C68: 637 | D68: Služby | E68: 27539.16 | F68: 26192.83 | G68: 20000 | H68: 20000 | I68: 0 | J68: 20000 | K68: 7558.69 | L68: 37.79345
A69: 08 02 | B69: 111 | C69: 642 | D69: Bež.transf.na nem.dávky | E69: 3193.36 | F69: 1737.79 | G69: 3947 | H69: 3947 | I69: 0 | J69: 3947 | K69: 1924.09 | L69: 48.74816316
A70: 08 02 | B70: 72 | C70: 632 | D70: Energie | E70: 4739.15 | F70: 1484.01 | G70: 2000 | H70: 2000 | I70: 0 | J70: 2000 | K70: 0 | L70: 0
A71: 08 02 | B71: 41 | C71: 635 | D71: Údržba - učebne | E71: 0 | F71: 1015 | G71: 0 | H71: 0 | I71: 0 | J71: 0 | K71: 0 | L71: 0
A72: 08 02 | B72: 41 | C72: 635 | D72: Údržba - osvetlenie tried | E72: 520 | F72: 0 | G72: 0 | H72: 0 | I72: 0 | J72: 0 | K72: 0 | L72: 0
A73: 08 02 | B73: 41 | C73: 634 | D73: Dopravné náklady | E73: 869.8 | F73: 0 | G73: 0 | H73: 0 | I73: 0 | J73: 0 | K73: 0 | L73: 0
A74: 08 02 | B74: Bežný rozpočet | E74: =SUM(E41:E73) -> 626646.93 | F74: =SUM(F41:F73) -> 717780.66 | G74: =SUM(G41:G73) -> 646695 | H74: =SUM(H41:H73) -> 662746.23 | I74: =SUM(I41:I73) -> 3213.77 | J74: =SUM(H74:I74) -> 665960 | K74: =SUM(K41:K73) -> 182904.61 | L74: 27.46480419
A75: 08 03 Podprogram Školský klub
A76: 08 03 | B76: 41 | C76: 610 | D76: Mzdy, platy, OON | E76: 38864.9 | F76: 35268.98 | G76: 31098 | H76: 31098 | I76: 0 | J76: =SUM(H76:I76) -> 31098 | K76: =8090.98+423.4 -> 8514.38 | L76: =vypocetPercent(J76,K76) -> 27.37918837
A77: 08 03 | B77: 72 | C77: 610 | D77: Mzdy, platy, OON | E77: 0 | F77: 4299.07 | G77: 0 | H77: 0 | I77: 0 | J77: =SUM(H77:I77) -> 0 | K77: 0 | L77: =vypocetPercent(J77,K77) -> 0
A78: 08 03 | B78: 41 | C78: 620 | D78: Poistné a príspevky | E78: 14285.24 | F78: 13451.79 | G78: 10574 | H78: 10574 | I78: 0 | J78: 10574 | K78: =348.87+509.07+2122.47+75 -> 3055.41 | L78: =vypocetPercent(J78,K78) -> 28.89549839
A79: 08 03 | B79: 72 | C79: 620 | D79: Poistné a príspevky | E79: 0 | F79: 0 | G79: 1291 | H79: 1291 | I79: 0 | J79: 1291 | K79: 0 | L79: =vypocetPercent(J79,K79) -> 0
A80: 08 03 | B80: 41 | C80: 632 | D80: Energie | E80: 2858 | F80: 1809.81 | G80: 0 | H80: 553.66 | I80: 0 | J80: 553.66 | K80: 550 | L80: 99.33894448
A81: 08 03 | B81: 72 | C81: 632 | D81: Energie | E81: 0 | F81: 670.93 | G81: 3500 | H81: 3500 | I81: 0 | J81: 3500 | K81: 350.67 | L81: 10.01914286
A82: 08 03 | B82: 41 | C82: 633 | D82: Materiál | E82: 4694.84 | F82: 819.17 | G82: 0 | H82: 24.58 | I82: 0 | J82: 24.58 | K82: 24.58 | L82: 100
A83: 08 03 | B83: 72 | C83: 633 | D83: Materiál z príjmov | E83: 7295 | F83: 0 | G83: 1209 | H83: 1209 | I83: 0 | J83: 1209 | K83: 7.92 | L83: 0.6550868486
A84: 08 03 | B84: 41 | C84: 635 | D84: Údržba objektov | E84: 275.48 | F84: 282.61 | G84: 0 | H84: 18 | I84: 0 | J84: 18 | K84: 18 | L84: 100
A85: 08 03 | B85: 72 | C85: 635 | D85: Údržba objektov | E85: 0 | F85: 0 | G85: 500 | H85: 500 | I85: 94.81 | J85: 594.81 | K85: 222.84 | L85: 37.46406415
A86: 08 03 | B86: 41 | C86: 637 | D86: Služby | E86: 1576.64 | F86: 1137.64 | G86: 0 | H86: 23.76 | I86: 0 | J86: 23.76 | K86: 23.76 | L86: 100
A87: 08 03 | B87: 72 | C87: 637 | D87: Služby | E87: 0 | F87: 0 | G87: 1500 | H87: 1500 | I87: 0 | J87: 1500 | K87: 274.56 | L87: 18.304
A88: 08 03 | B88: 41 | C88: 642 | D88: Bež.transf.na nem.d. | E88: 2160.01 | F88: 0 | G88: 0 | H88: 0 | I88: 0 | J88: 0 | K88: 0 | L88: =vypocetPercent(J88,K88) -> 0
A89: 08 03 | B89: Bežný rozpočet | E89: =SUM(E76:E88) -> 72010.11 | F89: =SUM(F76:F88) -> 57740 | G89: =SUM(G76:G88) -> 49672 | H89: =SUM(H76:H88) -> 50292 | I89: =SUM(I76:I88) -> 94.81 | J89: =SUM(H89:I89) -> 50386.81 | K89: =SUM(K76:K88) -> 13042.12 | L89: =vypocetPercent(J89,K89) -> 25.88399623
A90: 08 04 Podprogram Školská jedáleň
A91: 08 04 | B91: 41 | C91: 610 | D91: Mzdy, platy, OON | E91: 53365.62 | F91: 56056.19 | G91: 56400 | H91: 56400 | I91: 0 | J91: =SUM(H91:I91) -> 56400 | K91: =11426.66+517.11 -> 11943.77 | L91: =vypocetPercent(J91,K91) -> 21.17689716
A92: 08 04 | B92: 41 | C92: 620 | D92: Poistné a príspevky | E92: 18885.6 | F92: 18822.4 | G92: 20628 | H92: 20628 | I92: 0 | J92: =SUM(H92:I92) -> 20628 | K92: =303.46+756.57+2988.07+180 -> 4228.1 | L92: 20.49689742
A93: 08 04 | B93: 41 | C93: 632 | D93: Energie | E93: 6217.09 | F93: 3197.42 | G93: 2000 | H93: 4116.5 | I93: 0 | J93: 4116.5 | K93: 2660.76 | L93: 64.63646301
A94: 08 04 | B94: 72 | C94: 632 | D94: Energie z príjmov | E94: 5000 | F94: 3546.29 | G94: 9400 | H94: 9400 | I94: 85.32 | J94: 9485.32 | K94: 727.73 | L94: 7.672171313
A95: 08 04 | B95: 41 | C95: 633 | D95: Materiál | E95: 12420.65 | F95: 2640.27 | G95: 0 | H95: 155.77 | I95: 0 | J95: 155.77 | K95: 155.77 | L95: 100
A96: 08 04 | B96: 72 | C96: 633 | D96: Elektro,prístroje z príj. | E96: 0 | F96: 55.32 | G96: 3000 | H96: 3000 | I96: =530.5-25 -> 505.5 | J96: 3505.5 | K96: =4696.95-3628.11 -> 1068.84 | L96: 30.49037227
A97: 08 04 | B97: 41 | C97: 635 | D97: Údržba | E97: 1417.41 | F97: 1228.24 | G97: 0 | H97: 820 | I97: 0 | J97: 820 | K97: 36 | L97: 4.390243902
A98: 08 04 | B98: 72 | C98: 635 | D98: Údržba | E98: 0 | F98: 0 | G98: 1000 | H98: 1000 | I98: 0 | J98: 1000 | K98: 23.9 | L98: 2.39
A99: 08 04 | B99: 41 | C99: 637 | D99: Služby | E99: 4292.49 | F99: 3697.27 | G99: 2400 | H99: 2400 | I99: 0 | J99: 2400 | K99: 1040.76 | L99: =vypocetPercent(J99,K99) -> 43.365
A100: 08 04 | B100: 72 | C100: 637 | D100: Služby | E100: 0 | F100: 0 | G100: 600 | H100: 600 | I100: 151.71 | J100: 751.71 | K100: 17.67 | L100: =vypocetPercent(J100,K100) -> 2.35064054
A101: 08 04 | B101: 41 | C101: 642 | D101: Bež.transf.na nem.dávky | E101: 130.2 | F101: 372.21 | G101: 0 | H101: 0 | I101: 0 | J101: 0 | K101: 0 | L101: =vypocetPercent(J101,K101) -> 0
A102: 08 04 | B102: 111 | C102: 633 | D102: Potraviny | E102: 0 | F102: 21867.6 | G102: 0 | H102: 1164 | I102: 0 | J102: 1164 | K102: 3146.4 | L102: 270.3092784
A103: 08 04 | B103: 72 | C103: 633 | D103: Potraviny | E103: 34682.39 | F103: 15617.5 | G103: 42000 | H103: 42000 | I103: 0 | J103: 42000 | K103: 3628.11 | L103: 8.638357143
A104: 08 04 | B104: 72 | C104: 642 | D104: Transfery iným osobám | E104: 0 | F104: 0 | G104: 0 | H104: 0 | I104: 25 | J104: 25 | K104: 0 | L104: 0
A105: 08 04 | B105: Bežný rozpočet | E105: =SUM(E91:E104) -> 136411.45 | F105: =SUM(F91:F104) -> 127100.71 | G105: =SUM(G91:G104) -> 137428 | H105: =SUM(H91:H104) -> 141684.27 | I105: =SUM(I91:I104) -> 767.53 | J105: =SUM(H105:I105) -> 142451.8 | K105: =SUM(K91:K104) -> 28677.81 | L105: 20.13158837
A106: 08 04 | B106: 41 | C106: 713 | D106: Stroje a prístroje | E106: 12538.74 | F106: 0 | G106: 0 | H106: 0 | I106: 0 | J106: 0 | K106: 0 | L106: 0
A107: 08 04 | B107: Kapitálový rozpočet | E107: =SUM(E106) -> 12538.74 | F107: 0 | G107: 0 | H107: 0 | I107: 0 | J107: 0 | K107: 0 | L107: 0
A108: 08 04 | B108: Spolu rozpočet | E108: =SUM(E107,E105) -> 148950.19 | F108: 127100.71 | G108: 137428 | H108: 141684.27 | I108: 767.53 | J108: 142451.8 | K108: =SUM(K107,K105) -> 28677.81 | L108: 20.13158837
A109: Bežný rozpočet | E109: =SUM(E105,E89,E74,E36) -> 1137215.08 | F109: =SUM(F105,F89,F74,F36) -> 1223880.18 | G109: =G36+G89+G105+G74 -> 1125777.5 | H109: =H36+H89+H105+H74 -> 1153008.12 | I109: =I36+I89+I105+I74 -> 4777.72 | J109: =J39+J89+J105+J74 -> 1157785.84 | K109: =K36+K89+K105+K74 -> 296457.64 | L109: 25.60556795
A110: Kapitálový rozpočet | E110: =SUM(E107,E38) -> 15444.74 | F110: 0 | G110: 0 | H110: 0 | I110: 0 | J110: 0 | K110: 0 | L110: 0
A111: CELKOM VÝDAVKY | E111: =SUM(E109:E110) -> 1152659.82 | F111: 1223880.18 | G111: 1125777.5 | H111: 1153008.12 | I111: 4777.72 | J111: 1157785.84 | K111: 296457.64 | L111: 25.60556795
A113: Návrh na úpravu príjmov RO - ZŠ s MŠ Palárikovo, rozpočtové opatrenie č. 9
A114: Pr PP | B114: Zdr | C114: Pol | D114: Popis | E114: Plnenie 2019 | F114: Plnenie 2020 | G114: 2021 Schválený rozpočet | H114: Upravený RR po úprave č.6 | I114: Návrh na úpravu č. 9 | J114: Upravený RR po úprave č. 9 | K114: Plnenie k 30.04.2021 | L114: % uprav. Schvál
A115: 1 | B115: 72 | C115: 312 | D115: projekty NSK | E115: 2489.98 | F115: 0 | G115: 0 | H115: 0 | I115: 0 | J115: =SUM(H115+I115) -> 0 | K115: 0 | L115: =vypocetPercent(J115,K115) -> 0
B116: 72 | C116: 312 | D116: transfer z ÚPSVaR | E116: 0 | F116: 41220.05 | G116: 0 | H116: 0 | I116: 0 | J116: =SUM(H116+I116) -> 0 | K116: 0 | L116: =vypocetPercent(J116,K116) -> 0
A117: 1 | B117: 72 | C117: 223 | D117: réžia žiaci | E117: 6472.04 | F117: 3025.42 | G117: 4000 | H117: 4000 | I117: 0 | J117: =SUM(H117+I117) -> 4000 | K117: 1062 | L117: =vypocetPercent(J117,K117) -> 26.55
A118: 1 | B118: 72 | C118: 223 | D118: poplatky za stravu | E118: 35432.06 | F118: 8405.12 | G118: 42000 | H118: 42000 | I118: 0 | J118: =SUM(H118+I118) -> 42000 | K118: 3794.47 | L118: 9.034452381
A119: 1 | B119: 72 | C119: 223 | D119: réžia dospelí stravníci | E119: 11478.11 | F119: 8909.82 | G119: 10000 | H119: 10000 | I119: 0 | J119: 10000 | K119: 2396.28 | L119: 23.9628
A120: 1 | B120: 72 | C120: 223 | D120: školné ŠKD | E120: 7295 | F120: 5590 | G120: 8000 | H120: 8000 | I120: 0 | J120: 8000 | K120: 1520 | L120: 19
A121: 1 | B121: 72 | C121: 223 | D121: školné MŠ | E121: 9822 | F121: 6202 | G121: 9000 | H121: 9000 | I121: 0 | J121: 9000 | K121: 2436 | L121: 27.06666667
A122: 1 | B122: 72 | C122: 223 | D122: prenájom škol.priest. | E122: 2790.8 | F122: 830 | G122: 2000 | H122: 2000 | I122: 0 | J122: 2000 | K122: 0 | L122: 0
A123: 1 | B123: 72 | C123: 292 | D123: vratky | E123: 1948.35 | F123: 1001.22 | G123: 0 | H123: 0 | I123: 1981.57 | J123: 1981.57 | K123: 85.32 | L123: 4.305676812
A124: 1 | B124: 131K | C124: 292 | D124: vratky | E124: 0 | F124: 0 | G124: 0 | H124: 0 | I124: 124.65 | J124: 124.65 | K124: 124.65 | L124: 100
A125: 3 | B125: 41 | C125: 453 | D125: použ.prostr.z min.rokov | E125: 0 | F125: 0 | G125: 0 | H125: 4230.27 | I125: 0 | J125: 4230.27 | K125: 0 | L125: 0
A126: 3 | B126: 72 | C126: 453 | D126: použ.prostr.z min.rokov | E126: 0 | F126: 0 | G126: 0 | I126: 530.5 | J126: =SUM(H126+I126) -> 530.5 | K126: 0 | L126: =vypocetPercent(J126,K126) -> 0
A127: CELKOM PRÍJMY ŠKOLA | E127: =SUM(E115:E125) -> 77728.34 | F127: =SUM(F115:F125) -> 75183.63 | G127: =SUM(G117:G123) -> 75000 | H127: =SUM(H115:H126) -> 79230.27 | I127: =SUM(I115:I126) -> 2636.72 | J127: =SUM(H127+I127) -> 81866.99 | K127: =SUM(K115:K126) -> 11418.72 | L127: =vypocetPercent(J127,K127) -> 13.9478928
